Cogmind - Beta 11 X7 @@@ ROGUE MODE // 2021.09.19 @ 20:48:26 Player: Runia Result: Destroyed by Tracker with Linked Autogun Performance ------------- Evolutions (6) 3000 Regions Visited (18) 3600 Robots Destroyed (224) 1120 Value Destroyed (9961) 9961 Prototype IDs (240) 4800 Alien Tech Used (0) 0 Bonus (6745) 6745 TOTAL SCORE: 29226 Bonus ------- High Alert Combat Kills 676 Follower Combat Kills 874 Entered Garrisons 400 Used RIF Installer 1000 Aligned with FarCom 300 Met Data Miner 300 Used Data Conduit 3000 Pursued by Intercept 1000 Friendly Fire -805 Cogmind --------- Core Integrity 0/1150 Matter 300/300 Energy 97/100 System Corruption 34% Temperature Cool (0) Movement Core (100) Ox1 Location -4/Factory Parts ------- > --- POWER (1) -------- (None) > --- PROPULSION (6) --- Advanced Medium Treads Advanced Medium Treads Advanced Medium Treads Advanced Medium Treads Advanced Medium Treads Advanced Medium Treads > --- UTILITY (9) ------ (None) > --- WEAPON (3) ------- Force Lance > --- INVENTORY (5) ---- Advanced Terrain Scanner Transmission Jammer Improved Remote Datajack Peak State ------------ > --- POWER ------------ Particle Reactor > --- PROPULSION ------- Improved Medium Treads Advanced VSS Leg Advanced VSS Leg Centrium Wheel > --- UTILITY ---------- Energy Well Improved Terrain Scan Processor Advanced Melee Analysis Suite Improved Target Analyzer Improved Force Field Improved Hacking Suite Improved Hacking Suite Advanced Hacking Suite Improved System Shield > --- WEAPON ----------- Katana Ripper Ripper > --- INVENTORY -------- Advanced Terrain Scanner Transmission Jammer Improved Remote Datajack Katana [Rating: 92] Favorites ----------- Power F-cell Engine Engine F-cell Engine Power Core Light Nuclear Core Reactor Particle Reactor Propulsion Carbon-fiber Leg Treads Light Treads Leg Carbon-fiber Leg Wheel Centrium Wheel Hover Unit Antigrav System Flight Unit Improved Surge Thruster Utility Advanced Melee Analysis Suite Device Microactuators Storage High-capacity Storage Unit Processor Advanced Melee Analysis Suite Hackware Relay Coupler [NC] Protection Light Armor Plating Weapon Ripper Energy Gun Variable Charge Gun Energy Cannon Phase Cannon Ballistic Gun Light Assault Rifle Launcher Improved Proton Missile Launcher Special Weapon Improved Remote Datajack Slashing Weapon Ripper Piercing Weapon Force Lance Build | -11 -10 -10 -10 -9 -8 -8 -7 -7 -6 -6 -6 -5 -5 -5 -5 -5 -5 -4 ------- Run | Scr Mat Min Exi Min Mat Gar Fac Gar Fac Low Dat Pro Fac Ext Cet Arc Hub Fac Slots Evolved 12 | . . . . . 4 . 2 . 2 . . . 2 . . . . 2 Power . | . . . . . . . . . . . . . . . . . . . Propulsion 4 | . . . . . 2 . . . 1 . . . . . . . . 1 Utility 7 | . . . . . 2 . 2 . 1 . . . 1 . . . . 1 Weapon 1 | . . . . . . . . . . . . . 1 . . . . . Parts Attached 302 | . 11 4 3 1 7 22 12 26 65 3 10 4 29 30 4 15 28 28 Power 13 | . 1 . . . 1 1 1 . 4 . 1 . 1 . . 1 1 1 Engine 8 | . 1 . . . . . 1 . 3 . 1 . 1 . . . . 1 Core 3 | . . . . . 1 1 . . 1 . . . . . . . . . Reactor 2 | . . . . . . . . . . . . . . . . 1 1 . Propulsion 89 | . 4 . 2 . 3 4 1 3 26 . 4 1 11 8 1 1 8 12 Treads 22 | . 4 . . . 1 1 1 . . . . . . . . . 8 7 Leg 53 | . . . 2 . 2 3 . 3 22 . 4 1 4 8 1 1 . 2 Wheel 3 | . . . . . . . . . . . . . . . . . . 3 Hover 10 | . . . . . . . . . 3 . . . 7 . . . . . Flight 1 | . . . . . . . . . 1 . . . . . . . . . Utility 107 | . 3 2 1 1 2 5 6 8 17 3 3 1 12 6 3 11 13 10 Device 48 | . . 1 1 . 1 1 1 2 7 2 1 1 7 1 1 9 8 4 Storage 8 | . 2 . . . . . . . 1 . . . . 1 1 . 2 1 Processor 12 | . . . . . 1 . 1 1 4 . . . 2 1 . . 1 1 Hackware 14 | . . . . . . 2 . 3 3 . . . . 1 . 1 . 4 Protection 25 | . 1 1 . 1 . 2 4 2 2 1 2 . 3 2 1 1 2 . Artifact . | . . . . . . . . . . . . . . . . . . . Weapon 93 | . 3 2 . . 1 12 4 15 18 . 2 2 5 16 . 2 6 5 Energy Gun 3 | . . . . . . . . 2 . . . . 1 . . . . . Energy Cannon 7 | . . . . . . . 1 . 3 . . . 1 1 . 1 . . Ballistic Gun 16 | . 3 2 . . 1 9 1 . . . . . . . . . . . Ballistic Cannon . | . . . . . . . . . . . . . . . . . . . Launcher 17 | . . . . . . . . 5 5 . . 1 1 3 . . 2 . Special Weapon 14 | . . . . . . 3 . 4 4 . . . . 2 . . 1 . Impact Weapon . | . . . . . . . . . . . . . . . . . . . Slashing Weapon 35 | . . . . . . . 2 4 6 . 2 1 2 10 . 1 3 4 Piercing Weapon 1 | . . . . . . . . . . . . . . . . . . 1 Special Melee Weapon . | . . . . . . . . . . . . . . . . . . . Unidentified Prototypes 4 | . . 1 2 . . . . . 1 . . . . . . . . . Parts Lost 84 | . . . . . 1 4 2 3 6 . 3 . 13 5 3 . 19 25 Power 4 | . . . . . . 1 . . . . . . . . . . 1 2 Propulsion 32 | . . . . . . 1 . 2 2 . 2 . 5 2 2 . 9 7 Utility 32 | . . . . . 1 . 2 1 3 . 1 . 5 2 1 . 4 12 Weapon 16 | . . . . . . 2 . . 1 . . . 3 1 . . 5 4 Highest Loss Streak 12 | . . . . . 1 1 2 2 2 . 3 . 8 2 3 . 12 10 Average Slot Usage (%) 93 | . 87 100 95 95 96 95 95 92 97 100 100 99 90 96 89 98 97 59 Engine 6 | . 14 14 14 14 4 . 2 7 5 6 6 6 5 5 5 3 . . Treads 7 | . 28 28 16 . 1 9 6 7 . . . . . . . . 22 3 Leg 19 | . . . 11 28 33 24 23 15 28 33 33 33 20 26 24 28 4 4 Device 6 | . . . 1 . 8 4 11 1 15 2 2 5 7 2 4 10 5 4 Storage 7 | . 14 14 14 14 9 9 7 7 6 6 6 6 5 5 10 11 8 2 Processor 13 | . . . . . 7 9 8 15 16 26 26 26 20 22 11 11 13 10 Hackware 6 | . . . . . . 6 . 14 6 6 6 6 5 8 5 6 10 14 Protection 4 | . 2 14 8 9 8 6 13 6 . 4 3 . 1 4 5 3 4 . Ballistic Gun 6 | . 27 28 28 28 18 16 7 . . . . . . . . . . . Special Weapon 1 | . . . . . . 1 . 2 3 . . . . . . . . . Slashing Weapon 7 | . . . . . . . 1 8 5 6 11 13 10 15 11 16 16 10 Naked Turns 38 | . . . . . . . . . . . . . . . . . . 38 Heaviest Build 86 | 10 31 31 31 31 32 40 50 48 80 72 67 60 82 76 86 81 86 43 Greatest Support 144 | 20 40 40 60 60 80 75 75 75 95 92 92 92 92 97 95 86 144 90 Greatest Overweight (x) 13 | . . . 1 . . . . 1 13 . . . 5 . 1 1 2 2 Average Overweight (x) . | . . . . . . . . . . . . . . . . . . . Largest Inventory Capacity 20 | 8 15 15 15 15 15 15 15 15 20 20 20 20 20 20 20 20 20 5 Average Capacity 16 | 8 13 15 15 15 15 15 15 15 19 20 20 20 20 20 20 20 20 5 Most Carried 20 | 5 8 11 13 11 15 15 15 15 20 20 20 20 20 20 20 20 20 5 Average Carried 14 | 5 4 9 11 10 12 14 14 14 18 20 19 18 17 18 16 18 18 4 Final Capacity 20 | 8 15 15 15 15 15 15 15 15 20 20 20 20 20 20 20 20 20 5 Final Carried 20 | 4 8 11 11 10 15 15 15 15 20 20 19 20 15 20 16 20 14 3 Class Distribution -------------------- 53% | Mutant 16% | Scavenger-Mutant 9% | Commander-Mutant 7% | Bothacker-Mutant 6% | Assassin Dominant Class ---------------- Mutant | -10/Materials Mutant | -10/Mines Mutant | -10/Exiles Mutant | -9/Mines Skirmisher | -8/Materials Mutant | -8/Garrison Scavenger-Mutant | -7/Factory Bothacker-Mutant | -7/Garrison Mutant | -6/Factory Mutant | -6/Lower Caves Scavenger-Mutant | -6/Data Miner Assassin | -5/Proximity Caves Mutant | -5/Factory Commander-Mutant | -5/Extension Scavenger-Mutant | -5/Cetus Scavenger-Mutant | -5/Archives Scavenger-Mutant | -5/Hub_04(d) Wizard-Mutant | -4/Factory Resources | -11 -10 -10 -10 -9 -8 -8 -7 -7 -6 -6 -6 -5 -5 -5 -5 -5 -5 -4 ----------- Run | Scr Mat Min Exi Min Mat Gar Fac Gar Fac Low Dat Pro Fac Ext Cet Arc Hub Fac Matter Collected 4880 | 179 377 116 . 43 15 640 155 435 966 45 . 175 357 552 75 185 220 345 Remotely . | . . . . . . . . . . . . . . . . . . . Salvage Created 10577 | . 637 188 . 25 33 577 224 1410 1630 74 . 100 698 1720 337 705 1822 397 Parts 535 | . 41 12 . 4 4 41 10 59 81 2 . 6 48 60 17 37 89 24 Haulers Intercepted 3 | . 2 . . . . . . . 1 . . . . . . . . . Recyclers Shooed 7 | . 1 . . . 1 . . . 2 . . . . . . . 2 1 Parts Field Recycled . | . . . . . . . . . . . . . . . . . . . Retrieved Matter . | . . . . . . . . . . . . . . . . . . . Parts Self-Destructed 6 | . . . . . . . . . . 2 . 4 . . . . . . Prevented . | . . . . . . . . . . . . . . . . . . . Kills | -11 -10 -10 -10 -9 -8 -8 -7 -7 -6 -6 -6 -5 -5 -5 -5 -5 -5 -4 ------- Run | Scr Mat Min Exi Min Mat Gar Fac Gar Fac Low Dat Pro Fac Ext Cet Arc Hub Fac Combat Hostiles Destroyed 161 | . 10 4 . . . 12 4 21 22 1 . 4 13 27 4 4 26 9 Melee 76 | . . . . . . . . 7 12 1 . . 12 16 . 4 15 9 Guns 28 | . 10 4 . . . 12 2 . . . . . . . . . . . Cannons 3 | . . . . . . . 2 . . . . . . 1 . . . . AOE 40 | . . . . . . . . 10 10 . . 4 1 8 . . 7 . Classes Destroyed 18 | . 4 1 . . 1 3 1 2 4 . . . 1 1 . . . . Worker 13 | . 2 . . 1 1 . . . 6 . . . 2 . . . 1 . Builder 11 | . . . . . . . . . . . . . 2 3 . . 5 1 Tunneler 5 | . . 1 . . . . . . 3 . . . 1 . . . . . Hauler 3 | . 2 . . . . . . . 1 . . . . . . . . . Recycler 8 | . . . . . . . . . 5 . . . . 2 . . 1 . Mechanic 2 | . . . . . . . . . 2 . . . . . . . . . Operator 13 | . . . . . 1 . . . 1 . . . . 1 . 9 1 . Watcher 4 | . 2 . . . . . . . 1 . . . . . 1 . . . Swarmer 31 | . . . . . . 4 . . 5 . . 4 5 8 . . . 5 Grunt 62 | . 10 4 . . . 1 1 15 2 . . . . 11 . . 18 . Brawler 2 | . . . . . . . . 2 . . . . . . . . . . Duelist 6 | . . . . . . . 2 1 2 . . . . 1 . . . . Protector 1 | . . . . . . . . . 1 . . . . . . . . . Sentry 27 | . . . . . . 8 1 3 3 1 . . 1 2 . 4 2 2 Hunter 8 | . . . . . . . . 1 2 . . . . 2 . . 3 . Programmer 16 | . . . . . . . . . 7 . . . 5 . . . 2 2 Heavy 2 | . . . . . . . . . . . . . . 1 . . 1 . Behemoth 1 | . . . . . . 1 . . . . . . . . . . . . Cetus Guard 4 | . . . . . . . . . . . . . . . 4 . . . Tracker 1 | . . . . . . . . . . . . . 1 . . . . . Combat Programmer 1 | . . . . . . . . . . . . . 1 . . . . . Savage 1 | . . . . . . . . . . . . . . 1 . . . . Butcher 1 | . . . . . . . . . . . . . . 1 . . . . Guerrilla 1 | . . . . . . . . . . . . . . 1 . . . . Best Kill Streak 15 | . 3 2 . 1 1 2 3 5 8 1 . 4 7 6 5 2 15 3 Combat Bots Only 12 | . 2 2 . . . 2 3 5 4 1 . 4 7 6 4 1 12 3 Max Kills in Single Turn 5 | . 2 1 . 1 1 2 1 2 5 1 . 3 1 3 2 1 4 1 Gunslinging 1 | . . . . . . 1 . . . . . . . . . . . . Exploded 4 | . . . . . . . . 2 2 . . 3 1 3 . . 4 . Melee 1 | . . . . . . . . 1 1 1 . . 1 1 . 1 1 1 Uniques/NPCs Destroyed . | . . . . . . . . . . . . . . . . . . . Combat | -11 -10 -10 -10 -9 -8 -8 -7 -7 -6 -6 -6 -5 -5 -5 -5 -5 -5 -4 -------- Run | Scr Mat Min Exi Min Mat Gar Fac Gar Fac Low Dat Pro Fac Ext Cet Arc Hub Fac Damage Taken 16335 | . 535 322 . . 271 996 535 982 2235 110 647 31 1730 1295 512 280 2432 3422 Core 2705 | . 139 31 . . 64 121 12 81 285 . 48 . 201 86 80 . 395 1162 Absorbed by Shields 465 | . . . . . . . . 13 . . . . 75 . . . . 377 Core Remaining (%) 61 | 100 . . . 32 . 66 . 86 . . . 60 . . . . 23 . Volleys Fired 342 | . 86 19 . 5 11 98 15 38 26 . . 2 5 12 7 1 17 . Largest 2 | . 2 2 . 2 2 2 2 1 2 . . 1 1 1 1 1 1 . Hottest 113 | . 40 40 . 40 40 43 113 80 90 . . 43 75 90 43 90 43 . Shots Fired 537 | . 172 38 . 10 22 156 30 38 27 . . 2 5 12 7 1 17 . Gun 407 | . 172 38 . 10 22 147 15 2 . . . . 1 . . . . . Cannon 18 | . . . . . . . 15 . 1 . . . . 1 . 1 . . Launcher 74 | . . . . . . . . 21 15 . . 2 4 9 7 . 16 . Special 38 | . . . . . . 9 . 15 11 . . . . 2 . . 1 . Kinetic 404 | . 172 38 . 10 22 147 15 . . . . . . . . . . . Thermal 21 | . . . . . . . 15 2 1 . . . 1 1 . 1 . . Explosive 33 | . . . . . . . . . 15 . . 2 4 3 . . 9 . Electromagnetic 41 | . . . . . . . . 21 . . . . . 6 7 . 7 . Robot Hit Streak 24 | . 17 10 . 3 7 16 9 14 19 . . 6 3 6 8 . 24 . Robot Miss Streak 6 | . 4 3 . 5 2 6 1 2 2 . . . 1 2 . . . . Penetration Max . | . . . . . . . . . . . . . . . . . . . Secondary Targets 3 | . . 1 . . . 2 . . . . . . . . . . . . Max Gunslinging Chain 1 | . . 1 . . . 1 . . . . . . . . . . . . Shots Hit Robots 756 | . 125 23 . 4 16 100 22 69 101 5 1 2 60 53 6 47 85 37 Core Hits 373 | . 42 12 . 2 4 34 9 33 62 2 . 6 26 42 8 21 55 15 Critical Kills . | . . . . . . . . . . . . . . . . . . . Critical Parts Destroyed 1 | . . . . . 1 . . . . . . . . . . . . . Critical Strikes 20 | . . . . . 1 1 . 5 4 1 . . 1 2 . 1 2 2 Destroy 2 | . . . . . 1 1 . . . . . . . . . . . . Sever 18 | . . . . . . . . 5 4 1 . . 1 2 . 1 2 2 Melee Attacks 608 | . . . . . . . . 51 109 5 24 1 76 60 . 60 94 128 Impact . | . . . . . . . . . . . . . . . . . . . Slashing 601 | . . . . . . . . 51 109 5 24 1 76 60 . 60 94 121 Piercing 7 | . . . . . . . . . . . . . . . . . . 7 Sneak Attacks 80 | . . . . . . . . 13 22 . 1 . 6 16 . 10 9 3 Combat Hostiles 21 | . . . . . . . . 11 5 . . . . 5 . . . . Follow-up Attacks 57 | . . . . . . . . 1 . . . . 10 11 . 8 19 8 Damage Inflicted 33711 | . 1158 236 . 54 165 1187 524 3972 7103 112 108 576 3223 4691 580 3173 5162 1687 Guns 2852 | . 1063 230 . 54 152 1187 154 12 . . . . . . . . . . Cannons 439 | . . . . . . . 370 . 38 . . . . 31 . . . . Explosions 7988 | . 95 . . . . . . 1343 2683 . . 421 190 1038 580 . 1638 . Melee 22399 | . . . . . . . . 2609 4382 112 108 155 3033 3622 . 3173 3524 1681 Ramming 33 | . . 6 . . 13 . . 8 . . . . . . . . . 6 Kinetic 2840 | . 1063 230 . 54 152 1187 154 . . . . . . . . . . . Thermal 1682 | . . . . . . . 370 137 834 . . . . 190 84 . 67 . Explosive 3490 | . . . . . . . . . 1887 . . 421 190 420 . . 572 . Electromagnetic 3267 | . 95 . . . . . . 1218 . . . . . 459 496 . 999 . Impact . | . . . . . . . . . . . . . . . . . . . Slashing 22221 | . . . . . . . . 2609 4382 112 108 155 3033 3622 . 3173 3524 1503 Piercing 178 | . . . . . . . . . . . . . . . . . . 178 Highest Corruption 34 | . . . . . . . . . 4 4 4 4 19 19 19 19 9 34 Average Corruption 10 | . . . . . . . . . 2 4 4 4 9 19 19 16 5 20 Corruption Purged 24 | . . . . . . . . . . . . . . . . 19 5 . Effects 206 | . . . . . . . . . 24 1 6 14 19 89 6 19 6 22 Message Errors 59 | . . . . . . . . . 11 1 2 4 4 21 2 6 1 7 Matter Fused 54 | . . . . . . . . . 6 . . 3 8 24 1 5 1 6 Heat Flow Errors 30 | . . . . . . . . . 3 . . 4 3 16 2 . . 2 Energy Discharges 24 | . . . . . . . . . 2 . 1 1 3 11 . 1 2 3 Parts Rejected 2 | . . . . . . . . . . . 1 . . . . . . 1 Data Loss (minor) 27 | . . . . . . . . . 2 . 2 2 1 10 1 6 1 2 Data Loss (major) 5 | . . . . . . . . . . . . . . 3 . 1 1 . Alerts 4 | . . . . . . . . . . . . . . 4 . . . . Misdirections 1 | . . . . . . . . . . . . . . . . . . 1 Overload Shots . | . . . . . . . . . . . . . . . . . . . Overflow Damage 3460 | . . . . . . . . 176 1007 . . 129 121 819 . 459 526 223 Projectiles . | . . . . . . . . . . . . . . . . . . . Explosions 174 | . . . . . . . . . 121 . . . . 9 . . 44 . Melee 3286 | . . . . . . . . 176 886 . . 129 121 810 . 459 482 223 Knockbacks . | . . . . . . . . . . . . . . . . . . . Impact . | . . . . . . . . . . . . . . . . . . . Kinetic . | . . . . . . . . . . . . . . . . . . . Secondary . | . . . . . . . . . . . . . . . . . . . Self-Inflicted Damage 586 | . 20 . . . . . . 123 129 . . . 26 20 . . 265 3 Shots 23 | . 1 . . . . . . 6 3 . . . 1 1 . . 11 . Rammed 3 | . . 1 . . . . . . . . . . . . . . . 2 Targets Rammed 8 | . . 2 . . 1 . . 3 . . . . . . . . . 2 Kicked 4 | . . . . . 1 . . 3 . . . . . . . . . . Crushed 1 | . . 1 . . . . . . . . . . . . . . . . Highest Temperature 291 | . 36 65 . 8 27 33 1 32 226 . . 255 255 248 291 28 14 185 Average Temperature 53 | . 10 24 . 5 11 7 1 10 53 . . 120 89 87 148 15 3 92 Received Heat Transfer 2764 | . 321 171 . . 135 300 72 346 243 36 84 . 27 240 45 36 582 126 Siege Activations . | . . . . . . . . . . . . . . . . . . . Robots Corrupted 14 | . . . . . . . . 4 . . . . . 2 4 . 4 . Combat Hostiles 14 | . . . . . . . . 4 . . . . . 2 4 . 4 . Parts Fried 20 | . . . . . . . . 6 . . . . . 1 2 . 11 . Impact Corruptions . | . . . . . . . . . . . . . . . . . . . Robots Melted . | . . . . . . . . . . . . . . . . . . . Combat Hostiles . | . . . . . . . . . . . . . . . . . . . Parts Melted 1 | . . . . . . . . . 1 . . . . . . . . . Heat Transferred 1743 | . . . . . . . 444 225 637 . . . . 237 50 . 150 . Parts Sabotaged . | . . . . . . . . . . . . . . . . . . . Parts Stolen . | . . . . . . . . . . . . . . . . . . . Parts Stripped . | . . . . . . . . . . . . . . . . . . . Power Chain Reactions 9 | . . . . . . . . 4 . . . . . 3 1 . 1 . Missiles Intercepted . | . . . . . . . . . . . . . . . . . . . Alert | -11 -10 -10 -10 -9 -8 -8 -7 -7 -6 -6 -6 -5 -5 -5 -5 -5 -5 -4 ------- Run | Scr Mat Min Exi Min Mat Gar Fac Gar Fac Low Dat Pro Fac Ext Cet Arc Hub Fac Peak Influence 1043 | . 227 149 . 5 62 535 380 879 1043 . . . 203 443 307 316 668 321 Initial 461 | . . 29 . . 1 33 280 130 461 . . . 2 9 242 122 44 321 Average 239 | . 60 57 . 1 35 326 293 572 364 . . . 64 211 291 198 187 67 Maximum Alert Level 3 | . 1 . . . . 2 1 3 3 . . . 1 2 1 1 2 1 Low Security (%) 53 | 100 96 100 . 100 100 32 11 7 23 . . . 99 50 1 55 62 91 Level 1 25 | . 3 . . . . 18 88 14 34 . . . . 44 98 44 31 8 Level 2 18 | . . . . . . 49 . 56 38 . . . . 4 . . 5 . Level 3 2 | . . . . . . . . 21 4 . . . . . . . . . Level 4 . | . . . . . . . . . . . . . . . . . . . Level 5 . | . . . . . . . . . . . . . . . . . . . High Security . | . . . . . . . . . . . . . . . . . . . Max Security . | . . . . . . . . . . . . . . . . . . . Squads Dispatched 37 | . 2 . . . 1 . 1 . 12 . . . 4 2 . . 8 7 Investigation 2 | . . . . . . . 1 . . . . . . . . . 1 . Extermination 12 | . . . . . . . . . 7 . . . 2 . . . 1 2 Reinforcement 15 | . 2 . . . . . . . 4 . . . . 2 . . 5 2 Assault 1 | . . . . . . . . . 1 . . . . . . . . . Garrison 2 | . . . . . 1 . . . . . . . . . . . 1 . Intercept 5 | . . . . . . . . . . . . . 2 . . . . 3 Construction Impeded 1 | . . . . . . . . . . . . . . . . . 1 . Haulers Reinforced 2 | . . . . . . . . . 1 . . . . . . . 1 . Active Scanning Responses . | . . . . . . . . . . . . . . . . . . . Cargo Convoy Interrupts 1 | . . . . . . . . . 1 . . . . . . . . . Stealth | -11 -10 -10 -10 -9 -8 -8 -7 -7 -6 -6 -6 -5 -5 -5 -5 -5 -5 -4 --------- Run | Scr Mat Min Exi Min Mat Gar Fac Gar Fac Low Dat Pro Fac Ext Cet Arc Hub Fac Distress Signals 12 | . 2 . . . 1 . . . 1 . . . . 4 1 . 3 . Communications Jammed . | . . . . . . . . . . . . . . . . . . . Distress Signals . | . . . . . . . . . . . . . . . . . . . Times Spotted 309 | . 18 12 . . 13 29 7 43 40 1 4 3 17 35 5 8 46 28 Peak Tracking Total 14 | . 4 3 . . 10 4 3 7 8 1 4 . 6 6 5 1 11 14 Tactical Retreats 23 | . . 1 . . . 1 . 10 2 . . . 1 . . . 4 4 Traps | -11 -10 -10 -10 -9 -8 -8 -7 -7 -6 -6 -6 -5 -5 -5 -5 -5 -5 -4 ------- Run | Scr Mat Min Exi Min Mat Gar Fac Gar Fac Low Dat Pro Fac Ext Cet Arc Hub Fac Traps Triggered 14 | . . . . . . 4 1 4 2 . . . . 1 . . 2 . Indirectly 2 | . . . . . . . . 2 . . . . . . . . . . Trap Hack Attempts . | . . . . . . . . . . . . . . . . . . . Triggered . | . . . . . . . . . . . . . . . . . . . Disarmed . | . . . . . . . . . . . . . . . . . . . Reprogrammed . | . . . . . . . . . . . . . . . . . . . Reused 2 | . . . . . . 2 . . . . . . . . . . . . Traps Extracted . | . . . . . . . . . . . . . . . . . . . Installed 3 | . . . . . . 3 . . . . . . . . . . . . Triggered 6 | . . . . . . 2 . 1 3 . . . . . . . . . Machines | -11 -10 -10 -10 -9 -8 -8 -7 -7 -6 -6 -6 -5 -5 -5 -5 -5 -5 -4 ---------- Run | Scr Mat Min Exi Min Mat Gar Fac Gar Fac Low Dat Pro Fac Ext Cet Arc Hub Fac Machines Disabled 33 | . 1 1 . . . 2 . 2 21 . . . . 4 . 1 1 . Max in Single Turn 19 | . 1 . . . . 1 . 1 19 . . . . 2 . 1 1 . Garrison Access 1 | . . . . . . . . . . . . . . . . . 1 . Garrison Relay 4 | . . . . . . 2 . 2 . . . . . . . . . . Energy Cycler 1 | . . . . . . . . . . . . . . 1 . . . . Machines Sabotaged . | . . . . . . . . . . . . . . . . . . . Garrisons Compromised 1 | . . . . . . . . . 1 . . . . . . . . . Overloaded Fab Kills . | . . . . . . . . . . . . . . . . . . . Fab Network Shutdowns . | . . . . . . . . . . . . . . . . . . . Hacking | -11 -10 -10 -10 -9 -8 -8 -7 -7 -6 -6 -6 -5 -5 -5 -5 -5 -5 -4 --------- Run | Scr Mat Min Exi Min Mat Gar Fac Gar Fac Low Dat Pro Fac Ext Cet Arc Hub Fac Machines Accessed 46 | . 6 1 1 . 4 . 3 . 9 . 4 . 4 8 . . 5 1 Terminals 29 | . 6 . . . 3 . 1 . 4 . . . 3 7 . . 4 1 Fabricators 2 | . . . . . . . . . 2 . . . . . . . . . Repair Stations 3 | . . . . . . . 1 . 2 . . . . . . . . . Recycling Units 1 | . . . . . . . . . . . . . . 1 . . . . Scanalyzers 1 | . . . . . . . . . 1 . . . . . . . . . Garrison Access 4 | . . . . . 1 . 1 . . . . . 1 . . . 1 . Total Hacks 133 | . 25 1 1 . 10 . 8 . 25 . 31 . 8 12 . . 8 4 Successful 85 | . 13 1 1 . 4 . 6 . 14 . 31 . 2 6 . . 4 3 Failed 48 | . 12 . . . 6 . 2 . 11 . . . 6 6 . . 4 1 Catastrophic 6 | . 1 . . . . . . . 1 . . . . 3 . . 1 . Database Lockouts . | . . . . . . . . . . . . . . . . . . . Manual 34 | . 7 . 1 . 6 . . . 8 . . . 3 4 . . 5 . Terminals 77 | . 25 . . . 8 . 5 . 10 . . . 7 11 . . 7 4 Fabricators 4 | . . . . . . . . . 4 . . . . . . . . . Repair Stations 10 | . . . . . . . 2 . 8 . . . . . . . . . Recycling Units 1 | . . . . . . . . . . . . . . 1 . . . . Scanalyzers 3 | . . . . . . . . . 3 . . . . . . . . . Garrison Access 5 | . . . . . 2 . 1 . . . . . 1 . . . 1 . Terminal Hacks 59 | . 12 1 1 . 2 . 3 . . . 31 . 1 4 . . 1 3 Record 11 | . . . . . . . . . . . 11 . . . . . . . Part Schematic 10 | . . . . . . . . . . . 10 . . . . . . . Robot Schematic 7 | . . . . . . . . . . . 7 . . . . . . . Prototype ID Bank 6 | . 2 . . . . . . . . . 3 . . 1 . . . . Open Door 2 | . . 1 . . . . . . . . . . . 1 . . . . Branch Access Points 3 | . 1 . . . . . . . . . . . 1 . . . . 1 Alert Level 5 | . 3 . . . 1 . . . . . . . . 1 . . . . Unreport Threat 4 | . 2 . . . . . . . . . . . . . . . . 2 Locate Traps 2 | . 1 . . . . . 1 . . . . . . . . . . . Hauler Manifests 1 | . . . . . . . 1 . . . . . . . . . . . Registered Components 1 | . . . . . . . 1 . . . . . . . . . . . Registered Prototypes 1 | . 1 . . . . . . . . . . . . . . . . . Zone Layout 5 | . 2 . . . 1 . . . . . . . . 1 . . 1 . EX-Prototype ID Bank 1 | . . . 1 . . . . . . . . . . . . . . . Fabricator Hacks 1 | . . . . . . . . . 1 . . . . . . . . . Network Status 1 | . . . . . . . . . 1 . . . . . . . . . Repair Station Hacks 10 | . . . . . . . 2 . 8 . . . . . . . . . Scan Component 5 | . . . . . . . 1 . 4 . . . . . . . . . Repair 5 | . . . . . . . 1 . 4 . . . . . . . . . Recycling Unit Hacks 1 | . . . . . . . . . . . . . . 1 . . . . Report Inventory 1 | . . . . . . . . . . . . . . 1 . . . . Scanalyzer 1 | . . . . . . . . . 1 . . . . . . . . . Insert Component 1 | . . . . . . . . . 1 . . . . . . . . . Garrison Access Hacks 4 | . . . . . 1 . 1 . . . . . 1 . . . 1 . Unlock Access 3 | . . . . . 1 . 1 . . . . . 1 . . . . . Seal Access 1 | . . . . . . . . . . . . . . . . . 1 . Unauthorized Hacks 9 | . 1 . . . 1 . . . 4 . . . . 1 . . 2 . Terminals 8 | . 1 . . . 1 . . . 3 . . . . 1 . . 2 . Botnet 7 | . 1 . . . 1 . . . 3 . . . . 1 . . 1 . Sabotage 1 | . . . . . . . . . . . . . . . . . 1 . Fabricators 1 | . . . . . . . . . 1 . . . . . . . . . Haulers 1 | . . . . . . . . . 1 . . . . . . . . . Repair Stations . | . . . . . . . . . . . . . . . . . . . Recycling Units . | . . . . . . . . . . . . . . . . . . . Scanalyzers . | . . . . . . . . . . . . . . . . . . . Garrison Access . | . . . . . . . . . . . . . . . . . . . Data Cores Recovered 2 | . . . . . 1 . . . 1 . . . . . . . . . Used 1 | . . . . . 1 . . . . . . . . . . . . . Hacking Detections 32 | . 4 . . . 4 . 2 . 7 . . . 4 6 . . 4 1 Full Trace Events 1 | . . . . . . . 1 . . . . . . . . . . . Feedback Events . | . . . . . . . . . . . . . . . . . . . Feedback Blocked . | . . . . . . . . . . . . . . . . . . . Robot Schematics Acquired 7 | . . . . . . . . . . . 7 . . . . . . . Robots Built . | . . . . . . . . . . . . . . . . . . . Matter . | . . . . . . . . . . . . . . . . . . . Time . | . . . . . . . . . . . . . . . . . . . Total Robot Build Rating . | . . . . . . . . . . . . . . . . . . . Part Schematics Acquired 10 | . . . . . . . . . . . 10 . . . . . . . Parts Built . | . . . . . . . . . . . . . . . . . . . Matter . | . . . . . . . . . . . . . . . . . . . Time . | . . . . . . . . . . . . . . . . . . . Total Part Build Rating . | . . . . . . . . . . . . . . . . . . . Parts Repaired 5 | . . . . . . . 1 . 4 . . . . . . . . . Time 249 | . . . . . . . 19 . 230 . . . . . . . . . Parts Recycled . | . . . . . . . . . . . . . . . . . . . Recycled Matter . | . . . . . . . . . . . . . . . . . . . Retrieved Matter . | . . . . . . . . . . . . . . . . . . . Retrieved Components . | . . . . . . . . . . . . . . . . . . . Parts Scanalyzed 1 | . . . . . . . . . 1 . . . . . . . . . Part Schematics Acquired . | . . . . . . . . . . . . . . . . . . . Parts Damaged . | . . . . . . . . . . . . . . . . . . . Bothacking | -11 -10 -10 -10 -9 -8 -8 -7 -7 -6 -6 -6 -5 -5 -5 -5 -5 -5 -4 ------------ Run | Scr Mat Min Exi Min Mat Gar Fac Gar Fac Low Dat Pro Fac Ext Cet Arc Hub Fac Used RIF Installer 2 | . . . . . . 1 . 1 . . . . . . . . . . Command Fork 1 | . . . . . . . . 1 . . . . . . . . . . Robots Hacked 18 | . . . . . . 4 . 7 4 . . . . 2 . . 1 . Non-combat 4 | . . . . . . . . . 4 . . . . . . . . . Combat 12 | . . . . . . 4 . 7 . . . . . 1 . . . . Robot Hacks Applied 26 | . . . . . . 5 . 10 10 . . . . 1 . . . . drop_inventory 2 | . . . . . . . . . 2 . . . . . . . . . purge_threat 6 | . . . . . . . . . 6 . . . . . . . . . locate_traps 1 | . . . . . . . . . 1 . . . . . . . . . block_reporting 1 | . . . . . . . . . 1 . . . . . . . . . scatter_targeting 1 | . . . . . . . . 1 . . . . . . . . . . disrupt_area 1 | . . . . . . . . 1 . . . . . . . . . . amplify_resonance 1 | . . . . . . 1 . . . . . . . . . . . . reboot_system 6 | . . . . . . 1 . 4 . . . . . 1 . . . . overwrite_iff 6 | . . . . . . 2 . 4 . . . . . . . . . . formatsys_high 1 | . . . . . . 1 . . . . . . . . . . . . Manual 2 | . . . . . . . . . . . . . . 1 . . 1 . Relay Couplers Released 16 | . . . . . . 7 . 6 . . . . 3 . . . . . Machine Destruction 13 | . . . . . . 7 . 6 . . . . . . . . . . Programmers 3 | . . . . . . . . . . . . . 3 . . . . . Attached 9 | . . . . . . 2 . 3 3 . . . . 1 . . . . Robots Rewired 24 | . . . . . . . . 6 . . . . . 18 . . . . Allies Hacked . | . . . . . . . . . . . . . . . . . . . Hacks Repelled . | . . . . . . . . . . . . . . . . . . . Allies | -11 -10 -10 -10 -9 -8 -8 -7 -7 -6 -6 -6 -5 -5 -5 -5 -5 -5 -4 -------- Run | Scr Mat Min Exi Min Mat Gar Fac Gar Fac Low Dat Pro Fac Ext Cet Arc Hub Fac Total Allies 46 | . . 4 . . . 6 . 10 2 . . . . 22 . . 2 . Largest Group 12 | . . 4 . . . 2 . 6 1 . . . . 12 1 . 1 . Highest-Rated Group 323 | . . 71 . . . 100 . 96 82 . . . . 323 17 . 129 . Highest-Rated Ally 129 | . . 31 . . . 85 . 32 82 . . . . 85 17 . 129 . Total Orders 5 | . . . . . . 5 . . . . . . . . . . . . RETURN 5 | . . . . . . 5 . . . . . . . . . . . . Ally Attacks 297 | . . 21 . . . 45 . 61 28 . . . . 124 . . 18 . Total Damage 5176 | . . 230 . . . 783 . 889 236 . . . . 2450 . . 588 . Kills 37 | . . 7 . . . 7 . 5 . . . . . 16 . . 2 . Allies Corrupted . | . . . . . . . . . . . . . . . . . . . Allies Melted . | . . . . . . . . . . . . . . . . . . . Intel | -11 -10 -10 -10 -9 -8 -8 -7 -7 -6 -6 -6 -5 -5 -5 -5 -5 -5 -4 ------- Run | Scr Mat Min Exi Min Mat Gar Fac Gar Fac Low Dat Pro Fac Ext Cet Arc Hub Fac Robot Analysis Total 126 | . . . . . . . . . . . 126 . . . . . . . Derelict Logs Recovered 4 | . . 2 . 1 . . . . . . . 1 . . . . . . Drone Launches 55 | . . . . . . 23 . . 23 . . . . . . . 9 . Drone Recoveries 53 | . . . . . . 22 . . 23 . . . . . . . 8 . Exploration | -11 -10 -10 -10 -9 -8 -8 -7 -7 -6 -6 -6 -5 -5 -5 -5 -5 -5 -4 ------------- Run | Scr Mat Min Exi Min Mat Gar Fac Gar Fac Low Dat Pro Fac Ext Cet Arc Hub Fac Turns Passed 15437 | 1 1194 1231 348 104 325 957 450 1311 3141 95 321 753 853 1996 166 573 777 841 Spaces Moved 9293 | 1 574 691 277 99 270 577 346 932 2031 56 169 543 471 1144 80 252 346 434 Core 127 | . . . . . . . . . 1 . . . . . . . . 126 Treads 1826 | . 571 691 127 . . . . 1 . . . . . . . . 275 161 Legs 6747 | 1 3 . 150 99 270 577 346 931 1653 56 169 543 399 1144 80 252 71 3 Wheels 144 | . . . . . . . . . . . . . . . . . . 144 Hover 449 | . . . . . . . . . 377 . . . 72 . . . . . Flight . | . . . . . . . . . . . . . . . . . . . Fastest Speed 50 | 120 120 160 90 90 60 60 100 90 52 122 116 124 110 120 120 120 120 50 Average Speed 119 | 120 159 160 122 90 101 97 100 91 109 122 119 124 128 120 184 124 154 113 Slowest Speed 700 | 120 160 160 180 90 105 100 100 270 700 122 125 124 360 125 200 200 360 260 Overloaded Moves 18 | . . . . . 13 5 . . . . . . . . . . . . Propulsion Burnouts . | . . . . . . . . . . . . . . . . . . . Robots Hopped . | . . . . . . . . . . . . . . . . . . . Cave-ins Triggered 5 | . . . . . . . . . . . . . . . . . . 5 Exploration Rate (%) 48 | 2 86 93 63 21 32 59 7 71 39 13 82 66 13 94 47 84 33 13 Regions Visited 18 Branch Regions 10 Pre-discovered Areas 30 | . . 2 . . . . . . . . 27 1 . . . . . . Known Exits Taken 8 | . 1 . . . 1 . 1 . 1 1 1 1 1 . . . . . Unknown Exits Taken 8 | 1 . 1 1 1 . . . . . . . . . 1 1 1 1 . Scrap Searched 8 | . . 2 . . . . . . . 1 . 5 . . . . . . Spaces Dug 104 | . . . . . . . . 2 21 . 1 . 6 1 . 2 11 60 Terrain Destroyed 411 | . . . . . . . 2 20 163 . 1 28 39 26 17 2 53 60 Melee 102 | . . . . . . . . 2 21 . 1 . 5 1 . 1 11 60 Projectile 4 | . . . . . . . 2 . . . . . 1 . . 1 . . AOE 305 | . . . . . . . . 18 142 . . 28 33 25 17 . 42 . Terrain Rammed . | . . . . . . . . . . . . . . . . . . . Walls Destroyed . | . . . . . . . . . . . . . . . . . . . Machines Disabled . | . . . . . . . . . . . . . . . . . . . Actions | -11 -10 -10 -10 -9 -8 -8 -7 -7 -6 -6 -6 -5 -5 -5 -5 -5 -5 -4 --------- Run | Scr Mat Min Exi Min Mat Gar Fac Gar Fac Low Dat Pro Fac Ext Cet Arc Hub Fac Total 12469 | 2 711 780 287 104 299 837 420 1281 2829 71 247 617 638 1688 91 457 492 618 Wait 1383 | . 25 58 . . . 105 35 148 525 8 49 65 50 115 . 124 31 45 Move 9272 | . 573 690 276 98 270 576 345 931 2030 55 168 542 470 1143 79 251 345 430 Hop . | . . . . . . . . . . . . . . . . . . . Pick Up 130 | . 8 5 2 . 7 14 6 9 28 . . 3 10 12 . 10 7 9 Fast Attach 77 | . 1 . 2 . 5 6 5 3 18 . 1 . 9 6 . 4 1 16 Attach 79 | . 4 . 1 1 . 6 4 2 8 . 1 2 12 7 4 3 13 11 Detach 3 | . . . 1 . . . . . 1 . . . . 1 . . . . Swap 146 | . 6 4 . . 2 10 3 21 39 3 8 2 8 17 . 8 14 1 Drop 134 | 2 8 2 5 . 3 18 7 11 40 . . . 11 12 1 9 2 3 Fire 342 | . 86 19 . 5 11 98 15 38 26 . . 2 5 12 7 1 17 . Melee 494 | . . . . . . . . 50 109 5 20 1 63 40 . 47 62 97 Ram 2 | . . . . . . . . . . . . . . . . . . 2 Kick 4 | . . . . . 1 . . 3 . . . . . . . . . . Crush 2 | . . 2 . . . . . . . . . . . . . . . . Escape Stasis 19 | . . . . . . 1 . 4 5 . . . . 5 . . . 4 Rewire 379 | . . . . . . . . 61 . . . . . 318 . . . . Trap 3 | . . . . . . 3 . . . . . . . . . . . . Miscellaneous . | . . . . . . . . . . . . . . . . . . . Route ------- -11/Scrapyard -10/Materials (discovered 5 exits: [*Mat x3] / *Min x2) -10/Mines (discovered 2 exits: [*Mat] / *Exi) -10/Exiles -9/Mines -8/Materials (discovered 2 exits: *Fac / Gar) -8/Garrison (discovered 2 exits: *Fac x2) -7/Factory -7/Garrison (discovered 3 exits: *Fac x3) -6/Factory (discovered 2 exits: *Low x2) -6/Lower Caves -6/Data Miner -5/Proximity Caves -5/Factory (discovered 5 exits: Upp x2 / *Ext x2 / Gar) -5/Extension (discovered 3 exits: *Fac x2 / [*Cet]) -5/Cetus -5/Archives (discovered 3 exits: *Fac / *Hub x2) -5/Hub_04(d) (discovered 2 exits: *Fac x2) -4/Factory (discovered 3 exits: *Upp x2 / Arm) History --------- Turn | Location | Event 2 | -11/Scrapyard | Discovered new exit (range 0) 2 | -11/Scrapyard | Entered Materials 108 | -10/Materials | Discovered new exit (range 3) 314 | -10/Materials | Discovered new exit (range 14) 316 | -10/Materials | Build established: Mutant 470 | -10/Materials | Identified exit to Mines 747 | -10/Materials | Discovered new exit (range 3) 772 | -10/Materials | Core integrity fell below 50% 983 | -10/Materials | Discovered new exit (range 5) 1196 | -10/Materials | Entered Mines 1317 | -10/Mines | Assisted by bots powering up and referring to "LRC-V3" 1440 | -10/Mines | Received a Mining Laser from a helpful Derelict 1513 | -10/Mines | Learned location of Zion (-7) 1849 | -10/Mines | Discovered new exit (range 8) 1863 | -10/Mines | Found the Drone Emporium 1873 | -10/Mines | Found Prototype Device 1874 | -10/Mines | Identified Splice Drone Bay 2155 | -10/Mines | Found a hidden stash of uninstalled traps 2209 | -10/Mines | A weapon hastily lodged in a ceiling crevice suddenly fell to the ground 2420 | -10/Mines | Deemed a non-threat by the Exiles lab entrance 2420 | -10/Mines | Discovered new exit (range 5) 2427 | -10/Mines | Entered Exiles 2466 | -10/Exiles | Met 8R-AWN 2493 | -10/Exiles | Met EX-HEX 2538 | -10/Exiles | Met EX-BIN 2586 | -10/Exiles | Aligned with FarCom system 2587 | -10/Exiles | Given EX-Vault access code 2626 | -10/Exiles | Opened EX-Vault 2632 | -10/Exiles | Found Prototype Leg 2632 | -10/Exiles | Identified Potential Leg 2635 | -10/Exiles | Found Potential Leg 2637 | -10/Exiles | Found Prototype Device 2639 | -10/Exiles | Identified Trap Reconfigurator 2659 | -10/Exiles | Warned to stay clear of 0b10 Research branches 2673 | -10/Exiles | Exiles lab attacked by MAIN.C 2765 | -10/Exiles | Discovered new exit (range 12) 2775 | -10/Exiles | Left Exiles lab with Potential Leg 2775 | -10/Exiles | Entered Mines 2777 | -9/Mines | Learned Materials garrison access intel 2842 | -9/Mines | Assembled infested the area 2870 | -9/Mines | Discovered new exit (range 8) 2879 | -9/Mines | Entered Materials 2879 | -8/Materials | Evolved 4 slots: Propulsion x2, Utility x2 2880 | -8/Materials | Loaded intel: 1 garrison access location 3057 | -8/Materials | Discovered new exit (range 10) 3191 | -8/Materials | Garrison activated, responded to threat 3204 | -8/Materials | Identified exit to Garrison 3204 | -8/Materials | Entered Garrison 3207 | -8/Garrison | Installed Relay Interface Framework 3230 | -8/Garrison | Triggered checkpoint 3324 | -8/Garrison | Garrison Relay disabled 3416 | -8/Garrison | Triggered checkpoint 3518 | -8/Garrison | Triggered checkpoint 3579 | -8/Garrison | Discovered new exit (range 16) 3678 | -8/Garrison | Triggered checkpoint 3714 | -8/Garrison | Triggered checkpoint 3775 | -8/Garrison | Spotted B-75 Beast 3777 | -8/Garrison | Discovered new exit (range 11) 3947 | -8/Garrison | Destroyed B-75 Beast 3990 | -8/Garrison | Triggered checkpoint 4009 | -8/Garrison | Garrison Relay disabled 4161 | -8/Garrison | Entered Factory 4161 | -7/Factory | Evolved 2 slots: Utility x2 4358 | -7/Factory | Repaired Arm. Treads 4605 | -7/Factory | Identified exit to Garrison 4611 | -7/Factory | Entered Garrison 4631 | -7/Garrison | Build established: Scavenger-Mutant 4681 | -7/Garrison | Triggered checkpoint 4782 | -7/Garrison | Triggered checkpoint 4885 | -7/Garrison | Triggered checkpoint 5184 | -7/Garrison | Triggered checkpoint 5242 | -7/Garrison | Garrison Relay disabled 5364 | -7/Garrison | Discovered new exit (range 19) 5414 | -7/Garrison | Triggered checkpoint 5423 | -7/Garrison | Garrison Relay disabled 5560 | -7/Garrison | Build established: Bothacker-Mutant 5617 | -7/Garrison | Discovered new exit (range 12) 5846 | -7/Garrison | Triggered checkpoint 5877 | -7/Garrison | Discovered new exit (range 19) 5888 | -7/Garrison | Triggered checkpoint 5918 | -7/Garrison | Expanded RIF knowledge: Command Fork 5922 | -7/Garrison | Entered Factory 5922 | -6/Factory | Evolved 2 slots: Propulsion x1, Utility x1 6594 | -6/Factory | Build established: Mutant 6891 | -6/Factory | Discovered new exit (range 4) 7057 | -6/Factory | Cargo convoy interrupted 7322 | -6/Factory | First assault squad dispatched 7870 | -6/Factory | Repaired Imp. Titanium Leg 7952 | -6/Factory | Repaired F-cell Engine 8029 | -6/Factory | Repaired Imp. Remote Datajack 8081 | -6/Factory | Repaired Lrn. Missile Launcher 8340 | -6/Factory | Discovered new exit (range 21) 9063 | -6/Factory | Identified exit to Lower Caves 9063 | -6/Factory | Entered Lower Caves 9071 | -6/Lower Caves | Attracted the attention of an 0b10 checkpoint 9153 | -6/Lower Caves | A Derelict revealed a hidden shortcut to meet someone special 9156 | -6/Lower Caves | Identified exit to Data Miner 9158 | -6/Lower Caves | Entered Data Miner 9158 | -6/Data Miner | Discovered new exit (range 6) 9174 | -6/Data Miner | Met Data Miner 9205 | -6/Data Miner | Learned location of Section 7 (-2) 9205 | -6/Data Miner | Acquired the access code to Warlord's prototype stash 9226 | -6/Data Miner | Received God Mode back door access code from Data Miner 9296 | -6/Data Miner | Interfaced with the Data Conduit 9477 | -6/Data Miner | Identified exit to Proximity Caves 9479 | -6/Data Miner | Entered Proximity Caves 9507 | -5/Proximity Caves | Lost 3 parts (2n1u) 9767 | -5/Proximity Caves | Build established: Assassin 9822 | -5/Proximity Caves | Received a Behemoth hack from an annoying Tinkerer 10202 | -5/Proximity Caves | Discovered new exit (range 11) 10216 | -5/Proximity Caves | Identified exit to Factory 10232 | -5/Proximity Caves | Entered Factory 10232 | -5/Factory | Evolved 2 slots: Utility x1, Weapon x1 10233 | -5/Factory | Loaded intel: 221 machine locations 10440 | -5/Factory | Identified exit to Garrison 10660 | -5/Factory | Destroyed 7 combat bots 10708 | -5/Factory | Identified exit to Upper Caves 10708 | -5/Factory | Identified exit to Extension 10866 | -5/Factory | Intercept squad dispatched 10879 | -5/Factory | Spotted Tracker 10888 | -5/Factory | Destroyed Tracker 10919 | -5/Factory | Lost 3 parts (1n1u1w) 10932 | -5/Factory | Spotted Combat Programmer 10945 | -5/Factory | System corruption reached 10% 10976 | -5/Factory | Destroyed Combat Programmer 11005 | -5/Factory | Lost 8 parts (4n2u2w) 11085 | -5/Factory | Entered Extension 11086 | -5/Extension | Loaded intel: 38 machine locations 11198 | -5/Extension | Rescued a captive Derelict 11198 | -5/Extension | Rescued a captive Derelict 11250 | -5/Extension | Build established: Mutant 11420 | -5/Extension | Energy Cycler disabled 11420 | -5/Extension | Rescued a captive Derelict 11420 | -5/Extension | Rescued a captive Derelict 11421 | -5/Extension | Rescued a captive Derelict 11425 | -5/Extension | Rescued a captive Derelict 11426 | -5/Extension | Rescued a captive Derelict 11428 | -5/Extension | Rescued a captive Derelict 11432 | -5/Extension | Rescued a captive Derelict 11781 | -5/Extension | Build established: Commander-Mutant 11949 | -5/Extension | Spotted B-75 Beast 11968 | -5/Extension | Befriended a Behemoth using the annoying Tinkerer's hack 11980 | -5/Extension | Spotted B-75 Beast 11989 | -5/Extension | Discovered new exit (range 12) 11996 | -5/Extension | Allies destroyed B-75 Beast 12993 | -5/Extension | Discovered new exit (range 16) 12993 | -5/Extension | Discovered new exit (range 16) 13035 | -5/Extension | Disrupted transfer network 13081 | -5/Extension | Entered Cetus 13081 | -5/Cetus | Accompanied by 1 ally 13082 | -5/Cetus | Loaded intel: 24 machine locations 13097 | -5/Cetus | Spotted Cetus Guard 13097 | -5/Cetus | Spotted Cetus Guard 13102 | -5/Cetus | Spotted Cetus Guard 13115 | -5/Cetus | Destroyed Cetus Guard 13115 | -5/Cetus | Destroyed Cetus Guard 13115 | -5/Cetus | Spotted Cetus Guard 13116 | -5/Cetus | Destroyed Cetus Guard 13121 | -5/Cetus | Destroyed Cetus Guard 13144 | -5/Cetus | Lost 3 parts (2n1u) 13217 | -5/Cetus | Discovered new exit (range 16) 13246 | -5/Cetus | Build established: Scavenger-Mutant 13247 | -5/Cetus | Entered Archives 13248 | -5/Archives | Loaded intel: 8 machine locations 13437 | -5/Archives | Discovered new exit (range 13) 13625 | -5/Archives | Discovered new exit (range 16) 13751 | -5/Archives | Discovered new exit (range 16) 13820 | -5/Archives | Entered Hub_04(d) 13821 | -5/Hub_04(d) | Loaded intel: 77 machine locations 13995 | -5/Hub_04(d) | Lost 4 parts (3n1u) 14164 | -5/Hub_04(d) | Discovered new exit (range 13) 14251 | -5/Hub_04(d) | Destroyed 7 combat bots 14367 | -5/Hub_04(d) | Core integrity fell below 50% 14486 | -5/Hub_04(d) | Discovered new exit (range 2) 14496 | -5/Hub_04(d) | Spotted B-75 Beast 14503 | -5/Hub_04(d) | Befriended a Behemoth using the annoying Tinkerer's hack 14573 | -5/Hub_04(d) | Garrison activated, responded to threat 14597 | -5/Hub_04(d) | Entered Factory 14597 | -4/Factory | Evolved 2 slots: Propulsion x1, Utility x1 14598 | -4/Factory | Loaded intel: 239 machine locations 14598 | -4/Factory | Destroyed 12 combat bots 14627 | -4/Factory | Lost 12 parts (1p5n3u3w) 14671 | -4/Factory | Identified exit to Upper Caves 14671 | -4/Factory | Identified exit to Armory 14926 | -4/Factory | Build established: Wizard-Mutant 15087 | -4/Factory | Crushed by falling debris 15088 | -4/Factory | System corruption reached 10% 15105 | -4/Factory | Crushed by falling debris 15136 | -4/Factory | Lost 5 parts (5u) 15136 | -4/Factory | Crushed by falling debris 15145 | -4/Factory | Crushed by falling debris 15146 | -4/Factory | System corruption reached 30% 15149 | -4/Factory | Crushed by falling debris 15176 | -4/Factory | Lost 5 parts (1p1n1u2w) 15281 | -4/Factory | Core integrity fell below 50% 15317 | -4/Factory | Lost 10 parts (1p4n4u1w) 15382 | -4/Factory | Intercept squad dispatched 15383 | -4/Factory | Lost 4 parts (1n2u1w) 15384 | -4/Factory | Core integrity fell below 20% 15409 | -4/Factory | Spotted Tracker 15409 | -4/Factory | Spotted Tracker 15419 | -4/Factory | Spotted Combat Programmer 15432 | -4/Factory | Spotted Combat Programmer 15438 | -4/Factory | Destroyed by Tracker with Linked Autogun Last Messages --------------- System corrupted: Component data lost. ALERT: Reliable intel has pinpointed LRC-V3, intercept squad en route. System corrupted: Matter fused (-7). Acquired Adv. Medium Treads. Penetrated by Slug. Acquired Adv. Medium Treads. System corrupted: Heat flow error (+219). Slug penetrates Wall. Acquired Adv. Medium Treads. Slammed into S-27 Virus. Tracker: "THREAT CONFIRMED. DEPLOY COMBAT PROGRAMMER." BGD=GXR6WFUSMXY3Q9MQ6VTSW|4<:3SZYLPCL3 S-27 Virus destroyed. Acquired 26 matter. Acquired 20 matter. S-27 Virus destroyed. Acquired 21 matter. XBGTIDNSKKN9LYQF WWTDT<0%9BH0IUPTBM Slug penetrates Wall. Penetrated by EMDS Slug. Map ----- +----------------------------------------------------+ | ???????? ????????????????????????????????????????? | | ???????? ???????????????????????????????????????? | | ???????? ???????????????????????????????????????? | | ??????###/###????????????????????????????????????? | | ??????# #????????????????????????????????????? | | ??????# #????????????????????????????????????? | | """""?# #????????????????????????????????????? | | ??????+ +????????????????????????????????????? | | """""?# #????????????????????????????????????? | | ??????# #????????????????????????????????????? | | ####### ####+###??##?????????????????????????? | | #### ####?#####???????????????? | | # ! ????????????????? | | # !????????????????? | | # #???????????????? | | # """ """ """ #???????????????? | | ##+######/#### # """ """ """ #???????????????? | | ## # """ """ """ #???????????????? | | ## # #?"""""""???????? | | ## # """ #?"""""""???????? | | ## # ! * """ #?"""""""???????? | | ## / * """ #?"""""""???????? | | ## # #???????????????? | | ## ###+###############+#?????????? | | ## # p Ys%[=s* #???? | | ############## # """ @##############?????????? | | ?????????????# # """ #??????????????????????? | | ??"""""""""??# # """ #??????????????????????? | | ?????????????# # #??????????????????????? | | ??"""""""""??# # """ #??????????????????????? | | ?????????????# # """ #??????????????????????? | | ??"""""""""??# # """ #??????????????????????? | | #????????????#w # #?????""""?"""""""?????? | | #?"""""""""??# ??""" #???????"??"?????"?????? | | #????????????? ??""" #??????????"?????"?????? | | #?"""""""""????? ??""" |#??????????"""???"?????? | | #?????????????????????? #????"""????????""?????? | | #?????????????????????? #????"???????????"?????? | | #??????????????????????###?????"?????Y????""?????? | | #??????????????????????????????"??????????""?????? | | #?????????????????????????????????????????""?????? | | #???????????????????????????????Y??>???????"?????? | | #?????????????????????????????????????????""?????? | | ???????????????????????????????"??????????""?????? | | ???????????????????????????????"??????????""?????? | | ""G""??????????????????????????"???????????"?????? | | ?"?"???????????????????????????"""????????""?????? | | ?????????????????????????????????????"""???"?????? | | ?????????????????????????????????????"?????"?????? | | ??????????????????????????????????"??"?????"?????? | +----------------------------------------------------+ Best States ------------- Heat Dissipation 61 Energy Generation 23 Energy Capacity 850 Matter Stores 300 Matter Capacity 300 Sight Range 22 Robot Scan Range 16 Terrain Scan Range 20 Terrain Scan Density 110 Jamming Range 8 Armor Coverage 450 Resistance: KI 20 Propulsion Shielding 90 Utility Shielding 33 Melee Speed Boost 40 Evasion (%) 57 Melee Accuracy 16 Target Analysis 6 Recoil Reduction 5 Offensive Hacking 50 Defensive Hacking 12 Relay Coupler Types 45 Relay Coupler Value 2 Item Schematics ----------------- Combat Drone Bay | -6/Data Miner | Free Lgt. Regenerative Plating | -6/Data Miner | Free Exp. Sensor Array | -6/Data Miner | Free Exp. Targeting Computer | -6/Data Miner | Free Tactical Coordination Suite | -6/Data Miner | Free Exp. Transmission Jammer | -6/Data Miner | Free Exp. ECM Suite | -6/Data Miner | Free Mni. Smartbomb Launcher | -6/Data Miner | Free Plasma Sword | -6/Data Miner | Free Cloaking Device | -6/Data Miner | Free Robot Schematics ------------------ S-27 Virus | -6/Data Miner | Free G-50 Soldier | -6/Data Miner | Free L-41 Fighter | -6/Data Miner | Free H-66 Slayer | -6/Data Miner | Free I-36 Angel | -6/Data Miner | Free I-47 Archangel | -6/Data Miner | Free X-72 Disruptor | -6/Data Miner | Free Fabricated ------------ Nothing Alien Tech Used ----------------- None Achievements -------------- None Challenges ------------ None Game ------ Seed SlugArmageddonCasing Manual? 0 Play Time 02:07:25 Cumulative 335.5 hours Start 2021.09.19 @ 18:41:28 End 2021.09.19 @ 20:48:26 Sessions 1 Manual Loads 0 Difficulty Rogue Special Mode None Game No. 357 Rogue 357 Adventurer 0 Explorer 0 Win Type - Total 6 Types 6/0/0/0/0/0/0/0/0 Lore% 78 Gallery% 90 Achievement% 68 Wizard Run 0 Options --------- ASCII 0 Keyboard 0 Movement Mouse Keybinds 1 Fullscreen 2 Font 24/Smallcaps Map View 76x50 Tactical HUD 1 Map Filters NONE Filters NONE Steam 1 RUN: 86690f77-ba77-4cb1-944f-9c6d79182c81